bitfinex/quotes_SOLUSD_20250129
["timestamp","ask_amount","ask_price","bid_price","bid_amount"]
[1738117414934,8.66169214,230.78,230.77,0.03]
[1738117415747,32.43857614,230.78,230.77,0.03]
[1738117429490,20.0,230.75,230.66,2.96]
[1738117429760,8.66169214,230.69,230.65,0.03]
[1738117429964,20.0,230.66,230.65,0.03]
[1738117431359,8.66169214,230.67,230.65,0.03]
[1738117433278,8.66169214,230.69,230.65,0.03]
[1738117433590,8.66169214,230.72,230.65,0.03]
[1738117434386,20.0,230.69,230.65,0.03]
[1738117435184,20.0,230.67,230.65,0.03]
[1738117436589,20.0,230.66,230.65,0.03]
[1738117440975,82.5,230.74,230.65,0.03]
[1738117441282,8.66169214,230.7,230.65,5.8834]
[1738117442285,8.66169214,230.68,230.65,5.8834]
[1738117443881,20.0,230.63,230.58,1.6591]
[1738117444067,8.66169214,230.59,230.58,1.6591]
[1738117444981,8.66169214,230.61,230.58,1.6591]
[1738117450292,8.66169214,230.59,230.54,6.0304]
[1738117450479,8.66169214,230.55,230.54,6.0304]
[1738117453068,20.0,230.52,230.51,1.5028]
[1738117453271,8.66169214,230.53,230.51,4.4628]
[1738117454288,20.0,230.52,230.51,4.4628]
[1738117454466,20.0,230.52,230.51,4.58829]
[1738117454672,91.16169214,230.62,230.52,23.902374]
[1738117454982,20.0,230.59,230.55,0.12549]
[1738117455172,20.0,230.57,230.55,0.12549]
[1738117455489,20.0,230.57,230.53,0.12549]
[1738117457986,8.66169214,230.62,230.53,0.12549]
[1738117458193,91.16169214,230.68,230.61,0.12549]
[1738117458580,20.0,230.65,230.61,0.12549]
[1738117458779,20.0,230.63,230.61,0.12549]
[1738117460276,20.0,230.61,230.58,6.576]
[1738117461390,20.0,230.59,230.58,6.576]
[1738117461795,20.0,230.59,230.57,2.96]
[1738117461796,20.0,230.58,230.57,2.96]
[1738117462502,8.66169214,230.58,230.57,2.96]
[1738117463894,8.66169214,230.58,230.54,2.96]
[1738117464105,8.66169214,230.56,230.54,2.96]
[1738117464405,8.66169214,230.58,230.54,2.96]
[1738117471078,8.66169214,230.58,230.53,0.03]
[1738117471297,8.66169214,230.58,230.53,2.99]
[1738117473202,8.66169214,230.6,230.54,0.12549]
[1738117473409,8.66169214,230.64,230.54,8.78718214]
[1738117474307,20.0,230.61,230.54,8.78718214]
[1738117475891,8.66169214,230.64,230.56,15.25898214]
[1738117476488,8.66169214,230.62,230.56,6.59729]
[1738117477220,8.66169214,230.64,230.56,6.59729]
[1738117477391,8.66169214,230.64,230.56,15.25898214]
[1738117478411,8.66169214,230.6,230.56,6.59729]
[1738117478803,8.66169214,230.6,230.56,6.4718]
[1738117480118,8.66169214,230.58,230.55,2.96]
[1738117480310,8.66169214,230.58,230.53,0.15549]
[1738117480518,8.66169214,230.58,230.54,2.96]
[1738117481187,20.0,230.55,230.54,2.96]
[1738117483898,20.0,230.55,230.53,2.99]
[1738117489801,8.66169214,230.56,230.53,2.99]
[1738117490625,8.66169214,230.58,230.53,2.99]
[1738117492619,8.66169214,230.58,230.54,0.12549]
[1738117492808,28.66169214,230.6,230.54,0.12549]
[1738117495925,8.66169214,230.62,230.56,0.12549]
[1738117502630,8.66169214,230.6,230.56,0.12549]
[1738117505719,8.66169214,230.62,230.56,0.12549]
[1738117506634,8.66169214,230.62,230.56,0.15549]
[1738117507833,0.063,230.65,230.59,0.12549]
[1738117508026,0.063,230.65,230.61,0.12549]
[1738117508336,0.063,230.65,230.63,0.12549]
[1738117510635,0.063,230.65,230.61,23.902374]
[1738117514320,0.063,230.65,230.63,23.902374]
[1738117514517,0.063,230.65,230.58,8.66169214]
[1738117514718,8.66169214,230.62,230.59,2.96]
[1738117515120,8.66169214,230.6,230.59,2.96]
[1738117515720,8.66169214,230.6,230.57,2.96]
[1738117515916,8.66169214,230.58,230.57,2.96]
[1738117516121,8.66169214,230.6,230.56,2.99]
[1738117516737,8.66169214,230.6,230.56,0.03]
[1738117516936,8.66169214,230.6,230.56,2.99]
[1738117517322,8.66169214,230.6,230.56,0.03]
[1738117517638,8.66169214,230.6,230.56,2.99]
[1738117517829,8.66169214,230.58,230.56,2.99]
[1738117518031,8.66169214,230.58,230.56,0.03]
[1738117532347,8.66169214,230.58,230.53,2.99]
[1738117532521,8.66169214,230.58,230.45,32.6179]
[1738117532722,8.66169214,230.58,230.49,2.96]
[1738117533648,8.66169214,230.56,230.49,2.96]
[1738117533842,8.66169214,230.56,230.45,31.6179]
[1738117534028,8.66169214,230.54,230.5,2.96]
[1738117535139,8.66169214,230.54,230.48,0.12549]
[1738117535339,8.66169214,230.52,230.45,1.6179]
[1738117535542,20.0,230.49,230.45,1.6179]
[1738117535843,8.66169214,230.5,230.45,2.96]
[1738117536745,8.66169214,230.5,230.43,0.12549]
[1738117536948,8.66169214,230.5,230.45,0.12549]
[1738117537331,8.66169214,230.46,230.41,0.03]
[1738117537531,8.66169214,230.44,230.41,0.03]
[1738117537833,8.66169214,230.42,230.41,0.03]
[1738117543755,20.0,230.42,230.41,0.03]
[1738117545753,28.66169214,230.42,230.41,0.03]
[1738117549963,8.66169214,230.42,230.41,0.03]
[1738117550863,8.66169214,230.44,230.41,0.03]
[1738117551363,8.66169214,230.42,230.41,0.03]
[1738117554764,8.66169214,230.44,230.41,0.03]
[1738117558865,8.66169214,230.46,230.41,0.03]
[1738117559074,8.66169214,230.48,230.41,0.03]
[1738117559365,8.66169214,230.46,230.41,0.03]
[1738117559964,82.5,230.5,230.41,0.03]
[1738117559965,8.66169214,230.44,230.41,0.03]
[1738117561166,8.66169214,230.44,230.39,1.30369]
[1738117562170,8.66169214,230.42,230.37,2.96]
[1738117562569,8.66169214,230.44,230.37,2.96]
[1738117563672,8.66169214,230.44,230.38,0.12549]
[1738117565958,0.063,230.49,230.42,8.66169214]
[1738117566180,0.063,230.49,230.45,0.12549]
[1738117566478,20.063,230.49,230.42,8.66169214]
[1738117566675,8.66169214,230.48,230.43,2.96]
[1738117567182,8.66169214,230.44,230.4,2.96]
[1738117567359,8.66169214,230.44,230.39,3.08549]
[1738117567667,8.66169214,230.44,230.39,2.96]
[1738117570881,8.66169214,230.42,230.37,2.96]
[1738117571376,20.0,230.39,230.36,3.11549]
[1738117571573,20.0,230.39,230.36,0.15549]
[1738117571780,20.0,230.39,230.36,3.11549]
[1738117574383,8.66169214,230.42,230.36,3.11549]
[1738117576070,8.66169214,230.44,230.36,16.11818214]
[1738117576385,8.72469214,230.44,230.36,11.77718214]
[1738117576590,8.66169214,230.4,230.36,0.03]
[1738117576795,20.0,230.39,230.36,0.03]
[1738117577293,8.66169214,230.42,230.36,0.03]
[1738117577770,20.0,230.39,230.36,0.03]
[1738117578686,8.66169214,230.42,230.36,0.03]
[1738117578989,8.72469214,230.44,230.37,0.12549]
[1738117580202,0.063,230.44,230.39,0.12549]
[1738117581386,0.063,230.44,230.4,8.66169214]
[1738117581578,0.063,230.44,230.43,0.12549]
[1738117581881,0.063,230.44,230.43,3.08549]
[1738117582794,0.063,230.44,230.43,31.202074]
[1738117583674,0.063,230.44,230.43,3.08549]
[1738117590807,0.063,230.44,230.43,26.862374]
[1738117590999,0.063,230.44,230.43,62.202074]
[1738117593591,0.063,230.44,230.43,68.827274]
[1738117599292,0.063,230.58,230.48,0.12549]
[1738117599495,8.72469214,230.58,230.48,32.56406614]
[1738117599692,8.66169214,230.56,230.48,32.56406614]
[1738117600392,8.66169214,230.56,230.48,36.90276614]
[1738117600810,8.72469214,230.58,230.48,37.90276614]
[1738117604395,8.72469214,230.58,230.48,36.90276614]
[1738117606414,8.66169214,230.56,230.48,36.90276614]
[1738117606590,8.66169214,230.56,230.48,39.86276614]
[1738117606919,8.66169214,230.56,230.48,36.90276614]
[1738117607129,8.66169214,230.56,230.48,39.86276614]
[1738117607888,0.063,230.58,230.48,39.86276614]
[1738117608109,8.72469214,230.58,230.48,40.86276614]
[1738117608416,0.063,230.58,230.48,40.86276614]
[1738117610897,0.063,230.58,230.48,42.49446614]
[1738117611110,0.0001,230.49,230.48,42.49446614]
[1738117617819,0.063,230.58,230.55,1.0]
[1738117618119,0.063,230.58,230.57,34.56406614]
[1738117619122,0.063,230.58,230.57,38.90106614]
[1738117619301,0.063,230.58,230.57,36.90106614]
[1738117620513,0.063,230.58,230.57,37.90106614]
[1738117621720,0.063,230.58,230.57,32.56406614]
[1738117621924,0.063,230.58,230.57,3.08549]
[1738117622513,8.72469214,230.58,230.51,8.66169214]
[1738117622716,8.66169214,230.56,230.52,2.96]
[1738117623224,8.66169214,230.56,230.49,8.66169214]
[1738117623225,8.66169214,230.54,230.49,2.96]
[1738117623413,8.66169214,230.54,230.5,0.12549]
[1738117624633,8.66169214,230.54,230.47,0.12549]
[1738117624808,8.66169214,230.52,230.48,2.96]
[1738117625003,8.66169214,230.52,230.49,0.15549]
[1738117626021,8.66169214,230.54,230.49,0.15549]
[1738117626908,8.66169214,230.56,230.49,0.15549]
[1738117627612,8.66169214,230.56,230.49,3.11549]
[1738117628308,1.6524,230.57,230.51,8.78718214]
[1738117628922,20.0,230.56,230.51,0.12549]
[1738117629121,8.66169214,230.55,230.49,2.99]
[1738117629613,10.31409214,230.57,230.5,0.12549]
[1738117630531,10.31409214,230.57,230.5,23.902374]
[1738117632330,10.31409214,230.57,230.5,0.12549]
[1738117633629,10.31409214,230.57,230.5,23.902374]
[1738117633833,10.31409214,230.57,230.5,0.12549]
[1738117635917,20.0,230.56,230.5,23.902374]
[1738117636117,20.0,230.56,230.51,8.66169214]
[1738117636517,20.0,230.56,230.52,23.902374]
[1738117636914,0.063,230.58,230.52,23.902374]
[1738117637638,0.063,230.58,230.53,8.66169214]
[1738117637836,0.063,230.58,230.56,0.12549]
[1738117640532,0.063,230.58,230.53,8.78718214]
[1738117643141,0.063,230.58,230.51,23.776884]
[1738117643142,0.063,230.58,230.54,2.96]
[1738117645641,8.66169214,230.57,230.54,2.96]
[1738117645849,20.0,230.55,230.54,2.96]
[1738117648030,8.66169214,230.55,230.51,2.96]
[1738117648420,8.66169214,230.55,230.49,0.03]
[1738117648623,8.66169214,230.55,230.5,0.12549]
[1738117652248,8.66169214,230.53,230.49,2.99]
[1738117652433,8.66169214,230.53,230.49,0.03]
[1738117652629,8.66169214,230.53,230.49,0.15549]
[1738117652832,8.66169214,230.51,230.49,0.15549]
[1738117653534,8.66169214,230.51,230.49,0.03]
[1738117655035,82.5,230.5,230.49,0.0001]
[1738117655231,8.66169214,230.51,230.49,0.0001]
[1738117673067,8.72469214,230.51,230.49,0.0001]
[1738117673841,8.72469214,230.51,230.44,0.03]
[1738117673842,20.0,230.48,230.44,0.03]
[1738117674071,8.66169214,230.45,230.44,0.03]
[1738117674872,8.66169214,230.45,230.44,0.0001]
[1738117678862,20.0,230.42,230.38,0.03]
[1738117679168,8.66169214,230.39,230.38,0.03]
[1738117681044,8.66169214,230.4,230.38,0.03]
[1738117682052,8.66169214,230.39,230.38,0.03]
[1738117686871,8.66169214,230.4,230.38,0.03]
[1738117694473,43.3084607,230.4,230.38,0.03]
[1738117695655,82.5,230.39,230.38,0.03]
[1738117697679,82.5,230.39,230.38,0.0001]
[1738117700385,43.3084607,230.4,230.38,0.0001]
[1738117702261,20.0,230.37,230.36,0.0001]
[1738117702462,28.66169214,230.37,230.36,0.0001]
[1738117716884,8.66169214,230.28,230.25,3.08549]
[1738117721382,8.66169214,230.3,230.25,3.08549]
[1738117721590,20.0,230.29,230.25,3.08549]
[1738117721785,8.66169214,230.32,230.25,3.08549]
[1738117723403,8.66169214,230.34,230.28,1.5461]
[1738117723586,91.16169214,230.36,230.3,0.12549]
[1738117723777,91.16169214,230.36,230.32,0.12549]
[1738117723982,82.5,230.36,230.32,0.12549]
[1738117724905,91.16169214,230.36,230.32,0.12549]
[1738117727003,8.66169214,230.36,230.32,0.12549]
[1738117729005,8.66169214,230.33,230.31,6.1456]
[1738117729209,8.66169214,230.33,230.28,1.5461]
[1738117729587,8.72469214,230.37,230.29,8.78718214]
[1738117730006,8.72469214,230.37,230.3,23.776884]
[1738117731608,8.66169214,230.35,230.3,23.776884]
[1738117732108,8.66169214,230.35,230.32,0.12549]
[1738117734602,8.66169214,230.33,230.3,0.03]
[1738117734914,0.063,230.37,230.3,0.03]
[1738117734915,8.66169214,230.31,230.3,0.03]
[1738117736804,8.66169214,230.35,230.3,0.03]
[1738117737401,28.66169214,230.35,230.3,0.03]
[1738117741617,8.66169214,230.33,230.3,0.03]
[1738117744625,8.66169214,230.31,230.3,0.03]
[1738117746035,8.66169214,230.33,230.3,0.03]
[1738117746917,8.66169214,230.33,230.3,0.15549]
[1738117747718,28.66169214,230.31,230.3,0.03]
[1738117749835,8.66169214,230.35,230.3,0.03]
[1738117750003,20.0,230.34,230.3,0.03]
[1738117750624,8.72469214,230.37,230.31,0.12549]
[1738117750807,0.063,230.37,230.33,0.12549]
[1738117751008,0.063,230.37,230.35,0.12549]
[1738117751207,0.063,230.37,230.36,26.736884]
[1738117751520,0.063,230.37,230.36,26.862374]
[1738117751729,0.063,230.37,230.36,33.108774]
[1738117751915,0.063,230.37,230.36,34.741774]
[1738117753105,0.063,230.37,230.36,39.082774]
[1738117756607,0.063,230.37,230.36,34.741774]
[1738117757927,0.063,230.37,230.36,3.08549]
[1738117758719,0.063,230.37,230.36,26.862374]
[1738117760543,0.063,230.37,230.36,3.08549]
[1738117763323,0.063,230.37,230.31,8.66169214]
[1738117763528,0.063,230.37,230.32,2.96]
[1738117763735,8.66169214,230.36,230.32,2.96]
[1738117764029,8.66169214,230.34,230.33,2.96]
[1738117764233,8.66169214,230.34,230.3,0.03]
[1738117764436,8.66169214,230.32,230.3,2.99]
[1738117769634,8.66169214,230.32,230.31,0.12549]
[1738117769818,0.063,230.37,230.31,23.902374]
[1738117770419,0.063,230.37,230.33,23.902374]
[1738117771425,0.063,230.37,230.35,23.902374]
[1738117771631,0.063,230.37,230.36,32.56406614]
[1738117773437,0.063,230.37,230.36,23.902374]
[1738117777541,0.063,230.37,230.36,28.243374]
[1738117778345,0.063,230.37,230.36,23.902374]
[1738117778643,0.063,230.37,230.36,0.12549]
[1738117779330,0.063,230.37,230.36,3.08549]
[1738117780844,0.063,230.37,230.36,7.42649]
[1738117781444,0.063,230.37,230.36,16.08818214]
[1738117782142,0.063,230.37,230.36,69.86506614]
[1738117783456,0.063,230.37,230.36,71.52886614]
[1738117783748,0.0001,230.37,230.36,71.52886614]
[1738117785336,0.063,230.51,230.44,0.12549]
[1738117785540,0.063,230.51,230.46,23.902374]
[1738117786051,0.063,230.51,230.48,23.902374]
[1738117786259,0.063,230.51,230.5,23.902374]
[1738117788434,0.063,230.51,230.49,2.96]
[1738117788735,8.66169214,230.5,230.42,6.2995]
[1738117788943,0.063,230.51,230.4,55.9201]
[1738117789156,1.5799,230.5,230.4,51.58]
[1738117789328,1.5799,230.5,230.42,0.12549]
[1738117789764,1.5799,230.5,230.42,23.902374]
[1738117790061,8.66169214,230.46,230.42,23.902374]
[1738117790955,8.66169214,230.48,230.42,23.902374]
[1738117791169,8.66169214,230.48,230.42,28.242174]
[1738117791658,8.66169214,230.5,230.42,36.90386614]
[1738117792555,0.063,230.51,230.47,23.902374]
[1738117792949,0.063,230.51,230.49,23.902374]
[1738117794343,0.063,230.51,230.49,28.240874]
[1738117794543,0.063,230.51,230.49,41.79911841]
[1738117794944,0.063,230.51,230.5,24.902374]
[1738117801178,0.0001,230.51,230.5,29.240674]
[1738117802680,0.063,230.55,230.54,68.46061841]
[1738117802968,0.063,230.55,230.54,71.42061841]
[1738117805276,0.063,230.55,230.54,75.75821841]
[1738117810876,0.063,230.55,230.54,76.75821841]
[1738117811865,0.063,230.6,230.57,75.902374]
[1738117812064,0.0001,230.58,230.57,95.57241841]
[1738117813282,0.0001,230.58,230.57,98.90941841]
[1738117813575,0.0001,230.58,230.57,91.79761841]
[1738117813783,0.0001,230.58,230.57,71.79761841]
[1738117814783,0.0001,230.58,230.57,66.90935552]
[1738117815485,0.0001,230.58,230.57,67.90935552]
[1738117816671,0.0001,230.58,230.57,68.70242115]
[1738117818664,0.0001,230.58,230.57,73.57575479]
[1738117820987,0.0001,230.58,230.57,72.57575479]
[1738117821588,0.0001,230.58,230.57,75.53575479]
[1738117821993,0.0001,230.58,230.57,44.46187079]
[1738117822168,0.0001,230.58,230.57,0.12549]
[1738117822368,0.0001,230.58,230.57,3.08549]
[1738117822668,0.0001,230.58,230.57,26.862374]
[1738117824804,0.0001,230.58,230.57,3.08549]
[1738117829694,0.0001,230.58,230.57,23.08549]
[1738117829895,0.043,230.6,230.59,1.12549]
[1738117830098,0.063,230.65,230.64,30.0]
[1738117830281,0.063,230.73,230.67,37.44568916]
[1738117831291,0.063,230.73,230.67,23.902374]
[1738117832095,13.54331516,230.72,230.67,0.12549]
[1738117832304,13.54331516,230.69,230.67,0.12549]
[1738117833603,13.54331516,230.71,230.67,0.12549]
[1738117835798,13.60631516,230.73,230.67,0.12549]
[1738117836794,13.54331516,230.71,230.67,0.12549]
[1738117837197,13.54331516,230.69,230.65,2.94]
[1738117837501,13.54331516,230.67,230.65,2.94]
[1738117838316,15.13681516,230.67,230.65,2.94]
[1738117838489,15.13681516,230.67,230.61,2.94]
[1738117838691,13.54331516,230.64,230.61,2.94]
[1738117841495,20.0,230.62,230.61,2.94]
[1738117842388,20.0,230.62,230.61,2.97]
[1738117842695,13.54331516,230.64,230.62,0.12549]
[1738117843099,13.54331516,230.66,230.62,23.902374]
[1738117843287,1.5935,230.67,230.62,23.902374]
[1738117844293,33.54331516,230.66,230.61,2.97]
[1738117844483,13.54331516,230.64,230.61,2.97]
[1738117845685,1.5935,230.67,230.62,23.902374]
[1738117846003,0.063,230.68,230.62,37.44568916]
[1738117847720,0.063,230.68,230.62,41.78178916]
[1738117847936,0.063,230.68,230.65,23.902374]
[1738117850210,0.063,230.68,230.67,23.902374]
[1738117851898,0.063,230.73,230.69,73.902374]
[1738117852102,0.063,230.73,230.69,87.44568916]
[1738117853615,0.063,230.73,230.69,61.71262516]
[1738117853915,0.063,230.73,230.69,91.44346716]
[1738117854087,0.063,230.73,230.69,71.78048916]
[1738117855414,0.063,230.73,230.69,72.78048916]
[1738117857113,0.063,230.73,230.69,71.78048916]
[1738117858410,0.063,230.73,230.69,72.78048916]
[1738117859002,0.063,230.73,230.69,73.78048916]
[1738117861019,0.063,230.73,230.69,72.78048916]
[1738117861807,0.063,230.73,230.69,73.78048916]
[1738117861997,0.063,230.73,230.72,74.902374]
[1738117862197,0.063,230.73,230.72,88.44568916]
[1738117862420,0.063,230.73,230.72,87.44568916]
[1738117863218,0.063,230.73,230.72,91.77988916]
[1738117864498,0.063,230.73,230.72,92.77988916]
[1738117864916,0.063,230.75,230.74,24.902374]
[1738117865113,0.063,230.79,230.78,30.0]
[1738117865315,0.063,230.79,230.78,67.44568916]
[1738117866516,0.063,230.79,230.78,71.77878916]
[1738117867029,0.063,230.79,230.78,74.71878916]
[1738117867205,0.063,230.79,230.78,40.38568916]
[1738117869503,0.063,230.79,230.78,26.842374]
[1738117869712,0.063,230.79,230.78,23.902374]
[1738117869912,0.063,230.79,230.78,26.842374]
[1738117876215,0.063,230.79,230.78,44.71878916]
[1738117879341,0.063,230.79,230.78,74.71878916]
[1738117879651,0.063,230.79,230.78,83.09178916]
[1738117879823,0.063,230.79,230.78,84.64628916]
[1738117882132,0.063,230.84,230.81,50.12549]
[1738117882351,0.063,230.84,230.81,87.44568916]
[1738117883248,0.063,230.84,230.81,91.77818916]
[1738117883459,0.063,230.89,230.88,30.12549]
[1738117883648,0.063,230.94,230.91,73.902374]
[1738117883951,0.063,230.94,230.91,90.38568916]
[1738117884947,0.063,230.94,230.91,94.71628916]
[1738117887027,0.063,230.94,230.91,16.60880516]
[1738117890944,0.063,230.94,230.91,70.38568916]
[1738117891956,0.063,230.94,230.91,40.38568916]
[1738117896754,0.063,230.94,230.91,44.71628916]
[1738117897139,0.063,230.94,230.91,45.71628916]
[1738117899559,0.063,230.94,230.91,44.71628916]
[1738117900939,0.063,230.94,230.91,41.77628916]
[1738117901138,0.063,230.94,230.91,40.38568916]
[1738117902447,0.063,230.94,230.91,37.44568916]
[1738117902647,0.063,230.94,230.91,16.60880516]
[1738117903862,0.063,230.94,230.91,0.12549]
[1738117904048,0.063,230.94,230.91,3.06549]
[1738117906856,0.063,230.94,230.91,26.842374]
[1738117907063,0.063,230.94,230.91,40.38568916]
[1738117909148,13.60631516,230.94,230.9,0.03]
[1738117909485,13.60631516,230.92,230.9,0.03]
[1738117909665,0.063,230.92,230.9,0.03]
[1738117910954,20.0,230.91,230.9,0.03]
[1738117911658,33.60631516,230.92,230.9,0.03]
[1738117912163,82.5,230.91,230.9,0.03]
[1738117912358,83.4991,230.91,230.9,0.03]
[1738117912774,20.0,230.88,230.85,2.94]
[1738117912979,13.54331516,230.86,230.81,2.94]
[1738117913353,82.5,230.87,230.81,2.94]
[1738117913551,82.5,230.87,230.84,23.902374]
[1738117913771,13.60631516,230.92,230.84,23.902374]
[1738117914068,0.063,230.92,230.86,23.902374]
[1738117915277,0.063,230.92,230.91,0.12549]
[1738117916953,0.063,230.92,230.91,37.44568916]
[1738117919364,0.063,230.92,230.91,23.902374]
[1738117919765,0.063,230.92,230.91,26.842374]
[1738117922965,0.063,230.92,230.91,2.94]
[1738117924989,0.063,230.92,230.91,3.06549]
[1738117925359,0.063,230.92,230.91,44.71628916]
[1738117926577,0.063,230.92,230.91,40.38568916]
[1738117928586,0.063,230.92,230.91,26.842374]
[1738117928963,0.063,230.92,230.91,0.12549]
[1738117929163,0.063,230.92,230.91,3.06549]
[1738117930491,0.063,230.92,230.9,2.97]
[1738117930979,0.063,230.92,230.91,0.12549]
[1738117931683,0.063,230.92,230.91,37.44568916]
[1738117932076,0.063,230.92,230.91,23.902374]
[1738117932397,0.063,230.92,230.91,0.12549]
[1738117932582,0.063,230.92,230.91,37.44568916]
[1738117933388,0.063,230.92,230.91,71.77628916]
[1738117934972,0.063,230.92,230.91,78.39118916]
[1738117937472,0.063,230.92,230.91,79.39118916]
[1738117938695,0.063,230.92,230.91,78.39118916]
[1738117946695,0.063,230.92,230.91,73.48936846]
[1738117950001,0.063,230.92,230.91,66.87446846]
[1738117953104,0.063,230.92,230.91,69.81446846]
[1738117953502,0.063,230.92,230.91,39.81446846]
[1738117953684,0.063,230.92,230.91,32.54386846]
[1738117953880,0.063,230.92,230.91,35.48386846]
[1738117955127,0.063,230.92,230.91,23.902374]
[1738117955416,0.063,230.92,230.91,26.842374]
[1738117956586,0.063,230.92,230.91,35.48386846]
[1738117957816,0.063,230.92,230.91,26.842374]
[1738117961415,0.063,230.92,230.91,3.06549]
[1738117961613,0.063,230.92,230.91,2.94]
[1738117962009,0.063,230.92,230.91,3.06549]
[1738117964233,0.063,230.92,230.91,2.94]
[1738117965112,0.063,230.92,230.9,0.03]
[1738117965521,0.063,230.92,230.9,2.97]
[1738117967435,0.063,230.92,230.9,0.03]
[1738117968651,20.0,230.91,230.9,0.03]
[1738117979356,28.64149446,230.91,230.9,0.03]
[1738117979541,9.64059446,230.91,230.9,0.03]
[1738117979739,20.9991,230.87,230.76,51.46]
[1738117979963,8.64149446,230.82,230.77,2.94]
[1738117980248,8.64149446,230.84,230.78,0.12549]
[1738117980957,8.64149446,230.84,230.78,23.902374]
[1738117981335,8.64149446,230.84,230.79,2.94]
[1738117981835,91.14149446,230.86,230.8,23.902374]
[1738117982032,82.5,230.86,230.84,23.902374]
[1738117982235,1.6197,230.9,230.84,23.902374]
[1738117982556,8.64149446,230.89,230.84,23.902374]
[1738117982861,8.64149446,230.89,230.82,0.12549]
[1738117984361,8.64149446,230.89,230.82,23.902374]
[1738117984541,91.14149446,230.91,230.85,0.12549]
[1738117985060,0.063,230.92,230.85,8.76698446]
[1738117985261,0.063,230.92,230.88,23.902374]
[1738117985558,0.063,230.92,230.91,32.54386846]
[1738117985760,0.063,230.92,230.91,35.48386846]
[1738117985930,0.063,230.92,230.91,26.842374]
[1738117987165,0.063,230.92,230.91,3.06549]
[1738117987551,0.063,230.92,230.91,2.94]
[1738117988641,13.58106776,230.92,230.91,2.94]
[1738117989565,20.0,230.89,230.83,2.94]
[1738117989737,13.51806776,230.87,230.83,2.94]
[1738117989939,13.51806776,230.87,230.84,0.12549]
[1738117990159,13.51806776,230.87,230.81,23.776884]
[1738117990349,13.51806776,230.87,230.82,2.94]
[1738117990753,13.51806776,230.85,230.82,2.94]
[1738117993474,13.51806776,230.85,230.78,23.902374]
[1738117993641,13.51806776,230.85,230.82,2.94]
[1738117994641,13.51806776,230.85,230.82,2.97]
[1738117994947,13.51806776,230.87,230.83,23.902374]
[1738117995250,13.51806776,230.89,230.83,23.902374]
[1738117995655,13.51806776,230.87,230.83,23.902374]
[1738117995843,13.51806776,230.87,230.82,2.97]
[1738117997558,13.51806776,230.87,230.83,23.902374]
[1738117997757,13.51806776,230.89,230.83,23.902374]
[1738117997961,33.51806776,230.89,230.83,23.902374]
[1738117998547,13.51806776,230.87,230.83,23.902374]
[1738118000859,13.51806776,230.87,230.83,0.12549]
[1738118001053,13.51806776,230.87,230.82,2.97]
[1738118001949,13.51806776,230.87,230.83,23.902374]
[1738118003943,33.51806776,230.89,230.83,23.902374]
[1738118004143,33.51806776,230.89,230.83,0.12549]
[1738118004543,13.51806776,230.87,230.83,0.12549]
[1738118005570,13.51806776,230.87,230.82,2.97]
[1738118006070,13.51806776,230.85,230.82,2.97]
[1738118007266,13.51806776,230.85,230.83,0.03]
[1738118007962,82.5,230.84,230.83,0.03]
[1738118009985,83.5,230.84,230.83,0.03]
[1738118010468,21.6526,230.83,230.82,0.0001]
[1738118010641,31.75631453,230.83,230.82,0.0001]
[1738118011246,1.0,230.8,230.75,0.03]